bitfinex/quotes_ETHUSD_20241018
["timestamp","ask_amount","ask_price","bid_price","bid_amount"]
[1729249312461,2.4287801,2629.5,2628.9,0.24640716]
[1729249312662,2.4287801,2629.5,2629.2,0.06281214]
[1729249312845,2.4287801,2629.5,2628.8,1.6681801]
[1729249313273,2.4287801,2629.5,2628.9,0.06306169]
[1729249314252,2.4287801,2629.5,2628.9,0.31577502]
[1729249316048,1.6681801,2629.4,2628.9,0.31577502]
[1729249316243,1.6681801,2629.4,2628.9,0.06306169]
[1729249319108,2.4287801,2629.5,2628.9,0.06306169]
[1729249319465,1.6681801,2629.4,2628.9,0.06306169]
[1729249319768,2.4287801,2629.5,2628.9,0.06306169]
[1729249320481,1.6681801,2629.4,2628.9,0.06306169]
[1729249320823,1.6681801,2629.4,2628.9,0.37587502]
[1729249325519,1.6681801,2629.3,2628.9,0.37587502]
[1729249325719,1.6681801,2629.4,2628.9,0.37587502]
[1729249327317,2.4287801,2629.5,2628.9,0.37587502]
[1729249327522,2.4287801,2629.5,2628.9,2.04405512]
[1729249328026,7.36,2630.1,2629.2,1.6681801]
[1729249328027,0.8326,2629.7,2629.2,1.6681801]
[1729249328338,0.8326,2629.7,2629.0,1.74098617]
[1729249328339,0.8326,2629.7,2629.1,1.6681801]
[1729249328496,2.5007801,2629.7,2629.3,0.06252025]
[1729249328853,2.75085811,2629.7,2629.4,0.06241364]
[1729249329028,1.6681801,2629.6,2629.4,0.06241364]
[1729249329325,2.75085811,2629.7,2629.0,3.40916627]
[1729249329481,1.6681801,2629.6,2629.5,0.06230704]
[1729249329680,2.5007801,2629.7,2629.0,3.06507161]
[1729249330195,1.6681801,2629.6,2629.1,0.0627335]
[1729249334600,1.6681801,2629.5,2629.1,0.0627335]
[1729249334997,1.6681801,2629.6,2629.1,0.0627335]
[1729249336464,1.6681801,2629.6,2629.2,0.07605953]
[1729249336800,1.6681801,2629.6,2629.3,0.06246865]
[1729249338442,1.6681801,2629.6,2629.1,0.07605951]
[1729249338647,1.6681801,2629.6,2629.4,0.06236204]
[1729249338804,1.6681801,2629.6,2629.1,0.07605951]
[1729249339147,1.6681801,2629.6,2629.5,0.06225544]
[1729249339448,5.72110811,2629.6,2629.5,0.06225544]
[1729249339605,5.72110811,2629.6,2629.0,2.2691801]
[1729249339810,3.80356,2629.2,2629.1,0.07605949]
[1729249340023,3.80331,2629.3,2629.0,2.2691801]
[1729249340549,3.80343,2629.2,2629.0,2.2691801]
[1729249341046,3.80358,2629.1,2629.0,2.34524399]
[1729249341405,3.80358,2629.1,2629.0,2.2691801]
[1729249343264,3.80358,2629.1,2629.0,0.601]
[1729249343555,3.80358,2629.1,2628.8,1.19508505]
[1729249343556,3.80387,2628.9,2628.8,0.601]
[1729249343715,3.80387,2628.9,2628.8,2.2691801]
[1729249345655,3.80387,2628.9,2628.8,0.601]
[1729249346329,3.80387,2628.9,2628.8,2.2691801]
[1729249349676,3.80416,2628.7,2628.6,0.79589151]
[1729249349860,3.80445,2628.5,2628.3,0.79589151]
[1729249350024,0.7638,2628.6,2628.1,0.79589151]
[1729249350025,3.80474,2628.3,2628.1,0.79589151]
[1729249350369,3.80499,2628.2,2628.0,3.06507161]
[1729249350555,7.60956,2628.3,2628.1,0.07609251]
[1729249350756,7.60956,2628.3,2628.1,1.74427261]
[1729249351558,7.60956,2628.3,2628.2,7.6098]
[1729249354968,7.60956,2628.3,2628.2,7.67366939]
[1729249356054,7.60956,2628.3,2628.2,9.34184949]
[1729249357685,3.80474,2628.3,2628.2,9.34184949]
[1729249360373,3.80474,2628.3,2628.2,7.67366939]
[1729249362781,3.80474,2628.3,2628.2,10.01894057]
[1729249362985,3.80461,2628.4,2628.2,9.94284949]
[1729249363305,3.80461,2628.4,2628.2,8.27466939]
[1729249363306,3.80474,2628.3,2628.2,8.27466939]
[1729249364713,3.80461,2628.4,2628.2,8.27466939]
[1729249364883,7.60929,2628.4,2628.2,8.27466939]
[1729249365210,7.60929,2628.4,2628.2,9.94284949]
[1729249365410,3.80461,2628.4,2628.2,9.94284949]
[1729249365573,3.80474,2628.3,2628.2,9.94284949]
[1729249365968,3.80474,2628.3,2628.2,8.27466939]
[1729249366710,3.80474,2628.3,2628.2,9.94284949]
[1729249368117,3.80474,2628.3,2628.2,8.27466939]
[1729249368488,3.80474,2628.3,2628.2,9.94284949]
[1729249371232,3.80474,2628.3,2628.2,8.27466939]
[1729249380743,3.80474,2628.3,2628.2,7.67366939]
[1729249381037,5.57058301,2628.3,2628.2,7.67366939]
[1729249381961,7.23876311,2628.3,2628.2,7.67366939]
[1729249382846,5.57058301,2628.3,2628.2,7.67366939]
[1729249384165,4.56664,2628.3,2628.2,7.67366939]
[1729249386066,6.2348201,2628.3,2628.2,7.67366939]
[1729249386270,6.2348201,2628.3,2628.2,7.6098]
[1729249386437,6.2348201,2628.3,2628.2,7.67164315]
[1729249400309,4.56664,2628.3,2628.2,7.67164315]
[1729249400459,5.404765,2628.3,2628.2,7.67164315]
[1729249400665,7.0729451,2628.3,2628.2,7.67164315]
[1729249401663,3.80474,2628.3,2628.2,7.67164315]
[1729249401858,3.80474,2628.3,2628.2,7.6098]
[1729249401859,5.4729201,2628.3,2628.2,7.6098]
[1729249402090,5.4729201,2628.3,2628.2,7.67188396]
[1729249403101,3.80474,2628.3,2628.2,7.67188396]
[1729249403463,3.80474,2628.3,2628.2,8.49917236]
[1729249408606,5.4729201,2628.3,2628.2,8.49917236]
[1729249408789,5.4729201,2628.3,2628.2,7.67188396]
[1729249410396,3.80474,2628.3,2628.2,7.67188396]
[1729249411572,5.4729201,2628.3,2628.2,7.67188396]
[1729249412095,3.80474,2628.3,2628.2,7.67188396]
[1729249414529,5.4729201,2628.3,2628.2,7.67188396]
[1729249423314,6.47923311,2628.3,2628.2,7.67188396]
[1729249424535,7.23993311,2628.3,2628.2,7.67188396]
[1729249426045,5.57175301,2628.3,2628.2,7.67188396]
[1729249426249,5.4729201,2628.3,2628.2,7.67188396]
[1729249426749,3.80474,2628.3,2628.2,7.67188396]
[1729249426911,5.4729201,2628.3,2628.2,7.67188396]
[1729249427756,6.2917201,2628.3,2628.2,7.67188396]
[1729249427963,4.62354,2628.3,2628.2,7.67188396]
[1729249428113,7.1345351,2628.3,2628.2,7.67188396]
[1729249429209,5.466355,2628.3,2628.2,7.67188396]
[1729249429407,6.2917201,2628.3,2628.2,7.67188396]
[1729249430553,4.62354,2628.3,2628.2,7.67188396]
[1729249430720,6.2917201,2628.3,2628.2,7.67188396]
[1729249433062,5.4729201,2628.3,2628.2,7.67188396]
[1729249434434,3.80474,2628.3,2628.2,7.67188396]
[1729249434634,5.4729201,2628.3,2628.2,7.67188396]
[1729249434826,3.80474,2628.3,2628.2,7.67188396]
[1729249435733,5.4729201,2628.3,2628.2,7.67188396]
[1729249435946,3.80474,2628.3,2628.2,7.67188396]
[1729249436933,5.4729201,2628.3,2628.2,7.67188396]
[1729249441145,3.80474,2628.3,2628.2,7.67188396]
[1729249441349,3.79174,2628.3,2628.2,7.67188396]
[1729249441545,3.79174,2628.3,2628.2,8.27288396]
[1729249441864,3.79174,2628.3,2628.2,8.50678171]
[1729249441865,5.4599201,2628.3,2628.2,8.50678171]
[1729249442033,3.79174,2628.3,2628.2,7.67188396]
[1729249444973,5.4599201,2628.3,2628.2,7.67188396]
[1729249445418,6.2165201,2628.3,2628.2,7.67188396]
[1729249447574,6.2165201,2628.3,2628.2,7.6098]
[1729249447895,7.8847002,2628.3,2628.2,7.6098]
[1729249448078,7.38645112,2628.3,2628.2,0.06197173]
[1729249448594,3.80575,2627.6,2627.5,0.601]
[1729249448949,3.80575,2627.6,2627.5,0.66378435]
[1729249450762,3.80562,2627.7,2627.5,0.66378435]
[1729249451877,3.80562,2627.7,2627.5,1.45967586]
[1729249452584,3.80562,2627.7,2627.6,0.26547609]
[1729249452971,3.80562,2627.7,2627.6,0.32816537]
[1729249461483,5.4738001,2627.7,2627.6,0.32816537]
[1729249461696,3.80562,2627.7,2627.6,0.06268928]
[1729249462786,3.80589,2627.5,2627.4,0.79589151]
[1729249469507,3.80589,2627.5,2627.3,1.92739183]
[1729249469926,3.80589,2627.5,2627.4,0.79765371]
[1729249470235,3.80589,2627.5,2627.4,1.39632095]
[1729249470608,3.80589,2627.5,2627.4,0.59866724]
[1729249470907,3.80589,2627.5,2627.4,1.3963509]
[1729249471416,3.80577,2627.6,2627.4,1.39635491]
[1729249471776,3.80577,2627.6,2627.5,0.79768767]
[1729249471982,3.80577,2627.6,2627.5,1.4486136]
[1729249473052,3.80577,2627.6,2627.5,0.79768767]
[1729249474941,7.61112,2627.8,2627.6,0.601]
[1729249475178,3.80526,2628.0,2627.7,0.06269477]
[1729249475380,3.80483,2628.3,2627.9,1.6681801]
[1729249475579,3.80493,2628.2,2628.0,0.13846073]
[1729249475783,3.80493,2628.2,2628.0,0.06236524]
[1729249475937,3.80483,2628.3,2628.1,0.601]
[1729249476144,3.80483,2628.3,2628.2,0.29526424]
[1729249480984,3.80483,2628.3,2628.2,0.06210971]
[1729249482394,3.8046,2628.4,2628.2,0.06210971]
[1729249482695,3.80447,2628.5,2628.2,1.73028981]
[1729249482877,3.80447,2628.5,2628.2,0.06210971]
[1729249483074,3.80447,2628.5,2628.2,0.75651746]
[1729249483587,3.80434,2628.6,2628.2,0.75651746]
[1729249483588,3.8043,2628.6,2628.3,2.2691801]
[1729249483946,3.8043,2628.6,2628.4,0.06180747]
[1729249484992,7.60873,2628.6,2628.4,0.06180747]
[1729249485181,7.60873,2628.6,2628.4,0.364347]
[1729249485965,3.8043,2628.6,2628.4,0.364347]
[1729249486181,3.80411,2628.8,2628.4,2.0325271]
[1729249486182,3.80417,2628.7,2628.4,2.0325271]
[1729249487133,7.60846,2628.7,2628.4,0.364347]
[1729249487424,3.80433,2628.6,2628.4,0.364347]
[1729249490914,3.80442,2628.6,2628.4,0.364347]
[1729249491110,3.80442,2628.6,2628.4,0.06180747]
[1729249491513,3.80445,2628.5,2628.4,0.06180747]
[1729249491712,5.4726301,2628.5,2628.4,0.06180747]
[1729249492029,5.4726301,2628.5,2627.9,2.52295845]
[1729249492030,7.60967,2628.3,2627.9,2.32627078]
[1729249492542,3.80489,2628.2,2627.9,2.32627078]
[1729249492700,3.80489,2628.2,2628.0,0.31239585]
[1729249494497,3.80511,2628.1,2627.9,0.65809068]
[1729249494703,3.80511,2628.1,2627.9,2.32627078]
[1729249496524,3.80511,2628.1,2627.9,0.65809068]
[1729249496762,3.80498,2628.2,2627.9,2.40236728]
[1729249497423,3.80488,2628.2,2627.9,0.65809068]
[1729249497740,3.80503,2628.1,2627.9,0.65809068]
[1729249498061,3.80517,2628.0,2627.9,0.05709068]
[1729249498675,1.6681801,2628.0,2627.6,0.79768767]
[1729249498806,6.2309001,2627.9,2627.5,0.601]
[1729249499001,1.00357801,2628.0,2627.8,1.6681801]
[1729249499002,3.80526,2628.0,2627.8,1.6681801]
[1729249499239,3.80526,2628.0,2627.7,0.601]
[1729249499858,3.80526,2628.0,2627.7,2.2691801]
[1729249500226,3.80526,2628.0,2627.7,3.08166509]
[1729249500619,3.80526,2628.0,2627.7,1.41348499]
[1729249501967,3.80526,2628.0,2627.7,3.08166509]
[1729249502372,3.80512,2628.1,2627.7,3.08166509]
[1729249502778,3.80512,2628.1,2627.8,0.07609919]
[1729249503092,7.61026,2628.1,2627.8,0.7818289]
[1729249503388,3.80512,2628.1,2627.8,0.7818289]
[1729249504892,3.80512,2628.1,2627.9,0.06216379]
[1729249506700,4.56218,2628.3,2627.9,0.06216379]
[1729249506913,3.80478,2628.3,2628.0,0.67709396]
[1729249507110,3.80459,2628.4,2628.1,1.90892389]
[1729249507311,3.80459,2628.4,2628.1,0.30269413]
[1729249507669,3.80475,2628.3,2628.1,0.30269413]
[1729249509088,7.60957,2628.3,2628.1,0.30269413]
[1729249509707,3.80475,2628.3,2628.1,0.30269413]
[1729249510711,3.8046,2628.4,2628.1,0.30269413]
[1729249510913,0.8302,2628.6,2628.3,1.6681801]
[1729249510914,3.80431,2628.6,2628.3,1.6681801]
[1729249511070,3.80431,2628.6,2628.3,0.601]
[1729249511277,3.80431,2628.6,2628.4,0.28851085]
[1729249511622,3.80431,2628.6,2628.4,0.06159284]
[1729249514117,3.80431,2628.6,2628.4,0.13767717]
[1729249514283,3.80431,2628.6,2628.4,0.06159284]
[1729249520041,8.36251,2628.8,2628.5,1.6681801]
[1729249520330,4.55841,2628.8,2628.6,0.0612883]
[1729249520545,8.36255,2628.8,2628.6,0.0612883]
[1729249520691,3.80416,2628.7,2628.4,0.87376735]
[1729249522437,3.80416,2628.7,2628.4,0.07607968]
[1729249522645,3.80416,2628.7,2628.4,0.87376735]
[1729249525046,3.8039,2628.9,2628.6,1.6681801]
[1729249525338,3.8039,2628.9,2628.6,2.2691801]
[1729249525542,3.8039,2628.9,2628.6,0.601]
[1729249525703,3.8039,2628.9,2628.7,0.68712878]
[1729249528128,3.80367,2629.1,2628.8,1.6681801]
[1729249528334,3.80367,2629.1,2628.9,0.07607095]
[1729249528535,3.80367,2629.1,2628.7,6.95714655]
[1729249528735,3.80367,2629.1,2628.8,1.67301083]
[1729249528937,3.80367,2629.1,2628.8,0.87532316]
[1729249529719,3.80367,2629.1,2628.8,2.54350326]
[1729249530050,3.80367,2629.1,2628.8,0.87532316]
[1729249530450,0.8254,2629.4,2628.9,2.3452489]
[1729249530613,3.80339,2629.3,2629.0,0.32205721]
[1729249532644,3.80344,2629.2,2629.0,0.32205721]
[1729249533614,3.80334,2629.3,2629.0,0.32205721]
[1729249534251,3.80349,2629.2,2629.0,0.32205721]
[1729249534415,3.80349,2629.2,2628.9,0.601]
[1729249535018,3.80349,2629.2,2629.0,0.1321446]
[1729249538154,3.80329,2629.3,2629.0,0.1321446]
[1729249538362,3.80358,2629.1,2629.0,0.1321446]
[1729249538571,6.2980601,2629.1,2629.0,0.1321446]
[1729249538859,3.8042,2628.7,2628.3,1.39868767]
[1729249539016,3.8042,2628.7,2628.3,2.2691801]
[1729249539546,0.8263,2628.8,2628.3,6.0739001]
[1729249539748,0.8263,2628.8,2628.4,1.74426059]
[1729249540055,0.8263,2628.8,2628.3,0.601]
[1729249540261,8.4345,2628.8,2628.4,0.52694529]
[1729249540555,4.63036,2628.8,2628.4,0.52694529]
[1729249540863,0.8263,2628.8,2628.5,0.07607905]
[1729249541173,0.8263,2628.8,2628.6,7.6085]
[1729249541521,4.63035,2628.8,2628.6,7.6085]
[1729249542656,4.63035,2628.8,2628.6,8.59647044]
[1729249542864,3.80405,2628.8,2628.6,8.59647044]
[1729249543648,3.80416,2628.7,2628.6,8.59647044]
[1729249543971,3.80405,2628.8,2628.6,8.59647044]
[1729249544350,7.60816,2628.8,2628.6,8.59647044]
[1729249544551,3.80405,2628.8,2628.6,8.59647044]
[1729249544770,0.7715,2629.0,2628.6,8.59647044]
[1729249544972,0.7715,2629.0,2628.7,0.93572469]
[1729249545245,0.7715,2629.0,2628.6,9.8776801]
[1729249545246,3.80416,2628.7,2628.6,7.6085]
[1729249546590,4.59266,2628.7,2628.6,7.6085]
[1729249547453,6.2608401,2628.7,2628.6,7.6085]
[1729249549799,6.2608401,2628.7,2628.6,7.74105174]
[1729249552203,4.59266,2628.7,2628.6,7.74105174]
[1729249553001,6.2608401,2628.7,2628.6,7.74105174]
[1729249553169,4.59266,2628.7,2628.6,7.74105174]
[1729249558713,3.80416,2628.7,2628.6,7.74105174]
[1729249563786,3.80403,2628.8,2628.6,8.74207492]
[1729249564722,1.6681801,2629.1,2628.7,0.67707928]
[1729249564723,3.80368,2629.1,2628.7,0.67707928]
[1729249565020,3.80372,2629.0,2628.7,0.601]
[1729249565221,3.80372,2629.0,2628.8,1.06676662]
[1729249565826,3.80387,2628.9,2628.8,0.13245913]
[1729249566214,3.80387,2628.9,2628.7,0.601]
[1729249566532,3.80387,2628.9,2628.8,0.13245913]
[1729249566896,3.80387,2628.9,2628.7,0.601]
[1729249567227,3.80387,2628.9,2628.8,0.13245913]
[1729249567592,3.80387,2628.9,2628.7,0.601]
[1729249567789,3.80387,2628.9,2628.8,0.13245913]
[1729249568213,3.80387,2628.9,2628.7,1.90248932]
[1729249568424,3.80387,2628.9,2628.8,0.13245913]
[1729249568738,3.80387,2628.9,2628.7,1.90248932]
[1729249569039,10.0873501,2628.9,2628.8,0.13245913]
[1729249569560,10.0873501,2628.9,2628.6,7.6085]
[1729249569561,3.80416,2628.7,2628.6,7.6085]
[1729249570733,3.80401,2628.8,2628.6,7.6085]
[1729249570940,3.80387,2628.9,2628.7,0.601]
[1729249571141,3.8038,2629.0,2628.7,0.601]
[1729249571142,7.60763,2629.0,2628.7,0.601]
[1729249571637,3.8038,2629.0,2628.7,0.601]
[1729249571933,3.80358,2629.1,2628.8,1.06461384]
[1729249572711,3.80339,2629.3,2629.0,1.6681801]
[1729249572900,3.80339,2629.3,2629.1,0.601]
[1729249573100,3.80339,2629.3,2628.8,4.86861384]
[1729249573101,7.60681,2629.3,2628.9,0.601]
[1729249573317,3.80356,2629.2,2628.8,1.06461384]
[1729249574008,3.80356,2629.2,2628.9,0.24622417]
[1729249576418,5.4717801,2629.1,2628.6,9.17358614]
[1729249576619,3.80401,2628.9,2628.6,8.37695826]
[1729249579856,3.80401,2628.9,2628.7,0.13244467]
[1729249585055,3.80401,2628.8,2628.7,0.13244467]
[1729249585271,7.0846051,2628.8,2628.7,0.13244467]
[1729249585493,8.7527852,2628.8,2628.7,0.13244467]
[1729249585949,7.0846051,2628.8,2628.7,0.13244467]
[1729249587588,8.7527852,2628.8,2628.7,0.13244467]
[1729249591400,4.58696,2628.7,2628.6,1.90205797]
[1729249591610,7.51081262,2628.7,2628.6,7.97e-06]
[1729249592469,6.72801262,2628.7,2627.6,0.05709797]
[1729249592672,3.80547,2627.8,2627.6,0.05709797]
[1729249594802,7.61056,2628.0,2627.6,0.05709797]
[1729249594993,7.61056,2628.0,2627.6,0.29733669]
[1729249595298,2.285,2630.8,2628.0,0.601]
[1729249595299,3.80454,2628.5,2628.0,0.601]
[1729249595609,3.80474,2628.3,2628.0,0.67709543]
[1729249595771,3.80474,2628.3,2628.1,0.23452755]
[1729249596504,3.80474,2628.3,2628.0,0.67709543]
[1729249597026,5.4727201,2628.5,2628.0,0.601]
[1729249597182,3.80436,2628.6,2628.1,1.74427369]
[1729249597391,3.80436,2628.6,2628.2,0.601]
[1729249597587,3.80436,2628.6,2628.3,0.23452737]
[1729249598006,3.80436,2628.6,2628.2,0.601]
[1729249598702,3.80449,2628.5,2628.2,0.601]
[1729249598888,3.80449,2628.5,2628.3,0.12444093]
[1729249602728,3.80436,2628.6,2628.3,0.12444093]
[1729249602897,7.60876,2628.6,2628.3,0.12444093]
[1729249603103,3.80436,2628.6,2628.3,0.12444093]
[1729249603515,3.80436,2628.6,2628.3,0.57748602]
[1729249603714,7.60879,2628.6,2628.3,0.57748602]
[1729249603967,3.80436,2628.6,2628.3,0.57748602]
[1729249604244,3.80436,2628.6,2628.3,0.12444093]
[1729249605506,3.80445,2628.5,2628.3,0.12444093]
[1729249606322,0.7522,2628.8,2628.3,0.12444093]
[1729249606323,4.55623,2628.8,2628.3,0.12444093]
[1729249606518,3.80403,2628.8,2628.4,0.601]
[1729249606719,3.80403,2628.8,2628.5,0.12407254]
[1729249609332,3.80403,2628.8,2628.5,0.57704479]
[1729249609758,3.80403,2628.8,2628.5,0.65312489]
[1729249610137,7.60766,2629.0,2628.5,0.65312489]
[1729249610465,3.80383,2629.0,2628.7,0.601]
[1729249610670,3.80383,2629.0,2628.7,1.10684149]
[1729249610959,3.80383,2629.0,2628.8,0.12367427]
[1729249611356,3.80383,2629.0,2628.7,1.10684149]
[1729249611664,3.80383,2629.0,2628.9,0.12356489]
[1729249611819,3.80383,2629.0,2628.8,0.12367427]
[1729249612015,3.80383,2629.0,2628.9,0.12356489]
[1729249612222,3.80352,2629.2,2628.9,0.12356489]
[1729249612551,3.80352,2629.2,2629.0,0.1234158]
[1729249612552,7.60702,2629.2,2629.0,0.1234158]
[1729249612941,3.80348,2629.2,2628.7,1.10684149]
[1729249613238,7.607,2629.2,2628.8,0.9951567]
[1729249614257,3.80348,2629.2,2628.8,0.9951567]
[1729249614462,3.8036,2629.1,2628.8,0.9951567]
[1729249615343,3.8036,2629.1,2628.8,1.07122706]
[1729249617077,3.8036,2629.1,2628.8,0.9951567]
[1729249617383,3.8036,2629.1,2628.8,0.12363455]
[1729249617871,3.8036,2629.1,2628.7,0.601]
[1729249618047,3.8036,2629.1,2628.9,0.12334528]
[1729249618250,3.8036,2629.1,2628.8,0.12345465]
[1729249618565,3.8036,2629.1,2628.7,0.601]
[1729249618765,3.8036,2629.1,2628.9,0.12334528]
[1729249619469,3.8036,2629.1,2628.7,0.601]
[1729249619680,3.8036,2629.1,2629.0,0.12323591]
[1729249620176,3.8036,2629.1,2628.7,0.601]
[1729249620385,3.8036,2629.1,2629.0,0.12323591]
[1729249620671,3.8036,2629.1,2628.7,0.601]
[1729249620974,3.8036,2629.1,2628.7,1.04722669]
[1729249621162,3.8036,2629.1,2628.8,0.12345465]
[1729249621669,3.8036,2629.1,2628.7,1.04722669]
[1729249621869,5.47166498,2629.1,2628.9,0.12334061]
[1729249622030,5.47166498,2629.1,2628.8,0.12344998]
[1729249622273,3.8036,2629.1,2628.9,0.12334061]
[1729249622475,3.8036,2629.1,2628.7,0.601]
[1729249622716,3.8036,2629.1,2628.8,0.12344998]
[1729249622878,3.8036,2629.1,2628.7,1.21403319]
[1729249623313,3.8036,2629.1,2628.8,0.12344998]
[1729249623624,3.8036,2629.1,2628.7,1.21403319]
[1729249623914,3.8036,2629.1,2628.8,0.12345699]
[1729249624113,3.8036,2629.1,2628.7,1.21403319]
[1729249624300,2.47806498,2629.2,2628.8,0.12345699]
[1729249624508,2.47806498,2628.9,2628.4,0.601]
[1729249624690,3.80431,2628.6,2628.4,0.601]
[1729249624888,3.80431,2628.6,2628.5,0.12378517]
[1729249625421,3.80431,2628.6,2628.2,0.601]
[1729249625592,3.80431,2628.6,2628.5,0.12378517]
[1729249625773,4.57315,2628.5,2628.0,8.80762788]
[1729249625999,4.57315,2628.5,2628.1,0.07608723]
[1729249626201,3.80455,2628.5,2628.1,0.07608723]
[1729249627204,3.80435,2628.6,2628.0,4.4632496]
[1729249627404,3.80435,2628.6,2628.1,0.52698775]
[1729249628426,3.80435,2628.6,2628.1,4.33192775]
[1729249629335,3.80392,2628.9,2628.4,4.40551]
[1729249629634,4.61714,2629.2,2628.6,0.601]
[1729249629834,3.80354,2629.2,2628.7,3.88011951]
[1729249630125,3.80354,2629.2,2628.8,0.601]
[1729249630328,3.80354,2629.2,2628.9,0.90458747]
[1729249632612,4.61686,2629.4,2628.9,0.90458747]
[1729249632811,3.80333,2629.3,2628.9,0.90458747]
[1729249633449,7.6067,2629.3,2628.9,0.82851795]
[1729249633632,3.80333,2629.3,2628.9,0.82851795]
[1729249634149,3.8031,2629.5,2629.0,0.5233508]
[1729249634450,3.80324,2629.4,2629.0,0.07606541]
[1729249634646,3.80332,2629.3,2629.0,0.07606541]
[1729249636554,3.80315,2629.4,2629.0,0.07606541]
[1729249637507,3.80315,2629.4,2628.9,4.63230795]
[1729249637723,3.80315,2629.4,2629.0,0.5233308]
[1729249639813,3.80315,2629.4,2629.1,0.12318264]
[1729249640427,3.80331,2629.3,2629.1,0.12318264]
[1729249641667,3.80331,2629.3,2628.9,0.82851795]
[1729249642160,3.80331,2629.3,2629.0,0.123292]
[1729249642358,3.80329,2629.3,2629.0,0.123292]
[1729249643351,3.80329,2629.3,2629.0,0.658973]
[1729249643549,3.80316,2629.4,2629.0,0.658973]
[1729249643736,3.80316,2629.4,2629.0,3.927002]
[1729249643936,3.80316,2629.4,2629.0,0.123292]
[1729249645161,3.80331,2629.3,2629.1,0.601]
[1729249645368,3.80316,2629.4,2629.2,0.12307329]
[1729249645864,5.47087605,2629.4,2629.2,0.12307329]
[1729249646027,1.66771605,2629.4,2629.2,0.12307329]
[1729249646458,5.47073605,2629.5,2629.2,0.12307329]
[1729249648362,1.66771605,2629.5,2629.2,0.12307329]
[1729249648582,3.80315,2629.4,2629.2,0.19913377]
[1729249648785,5.47086605,2629.4,2629.2,0.12307329]
[1729249649353,3.80293,2629.6,2629.2,0.12307329]
[1729249649566,3.80293,2629.6,2629.3,0.07605853]
[1729249649788,1.66771605,2629.7,2629.4,0.12266306]
[1729249650082,3.80286,2629.6,2629.4,0.12266306]
[1729249650287,4.55545,2629.8,2629.4,0.12266306]
[1729249650491,11.74694255,2630.5,2629.5,0.601]
[1729249650492,4.55515,2630.0,2629.5,0.601]
[1729249650789,5.47056605,2629.6,2629.5,0.12254673]
[1729249651151,5.47056605,2629.6,2629.3,0.601]
[1729249651451,3.80307,2629.5,2629.4,0.12265372]
[1729249652325,5.47078605,2629.5,2629.4,0.12265372]
[1729249653844,3.80327,2629.4,2629.1,0.05706533]
[1729249654048,5.47114605,2629.2,2629.1,0.05706533]
[1729249654654,3.80331,2629.3,2629.1,0.05706533]
[1729249654886,3.80308,2629.5,2629.2,0.601]
[1729249655193,3.80308,2629.5,2629.3,0.12275605]
[1729249655492,5.47057605,2629.6,2629.3,0.12275605]
[1729249656469,5.47049605,2629.7,2629.3,0.12275605]
[1729249656821,1.66771605,2629.6,2629.3,0.66085598]
[1729249656972,5.47049605,2629.7,2629.3,0.66085598]
[1729249657922,9.27329605,2629.7,2629.3,0.66085598]
[1729249658121,1.66771605,2629.5,2629.3,0.66085598]
[1729249658416,1.66771605,2629.6,2629.3,0.12275605]
[1729249658617,5.47064605,2629.6,2629.3,0.12275605]
[1729249661078,3.80293,2629.6,2629.3,0.12275605]
[1729249661407,5.47064605,2629.6,2629.3,0.12275605]
[1729249662119,3.80293,2629.6,2629.3,0.12275605]
[1729249662280,3.80293,2629.6,2629.3,1.04119898]
[1729249662481,5.47064605,2629.6,2629.3,1.04119898]
[1729249664737,1.66771605,2629.6,2629.3,1.04119898]
[1729249665028,5.47043605,2629.7,2629.3,1.04119898]
[1729249666508,1.66771605,2629.6,2629.3,1.04119898]
[1729249668338,5.47043605,2629.7,2629.3,1.04119898]
[1729249670328,3.80287,2629.6,2629.3,1.04119898]
[1729249671422,3.80272,2629.7,2629.3,1.11725494]
[1729249671640,3.80272,2629.7,2629.3,1.11725356]
[1729249671804,3.80272,2629.7,2629.3,1.04119898]
[1729249672440,3.80272,2629.7,2629.3,1.91388147]
[1729249672764,3.80272,2629.7,2629.3,1.04119898]
[1729249672900,3.80272,2629.7,2629.4,0.63182315]
[1729249673100,3.80272,2629.7,2629.4,0.75440681]
[1729249673297,3.80256,2629.9,2629.5,2.26871605]
[1729249673548,3.80242,2629.9,2629.5,0.67705037]
[1729249673697,5.47013605,2629.9,2629.6,0.72548653]
[1729249673901,3.80257,2629.8,2629.6,0.12236502]
[1729249674512,5.47042605,2629.7,2629.6,0.12236502]
[1729249674717,5.47028605,2629.8,2629.6,0.12236502]
[1729249675404,3.80271,2629.7,2629.6,0.12236502]
[1729249675605,5.47031605,2629.8,2629.6,0.12236502]
[1729249676020,3.8026,2629.8,2629.6,0.12236502]
[1729249677614,3.8026,2629.8,2629.6,0.39385849]
[1729249677838,3.80248,2629.9,2629.7,0.85367915]
[1729249678138,3.80248,2629.9,2629.7,0.17925096]
[1729249678316,3.80248,2629.9,2629.7,0.12219969]
[1729249678519,5.47019605,2629.9,2629.7,0.12219969]
[1729249680149,3.80248,2629.9,2629.7,0.12219969]
[1729249680506,1.66771605,2629.9,2629.7,0.12219969]
[1729249680714,5.47014605,2629.9,2629.7,0.12219969]
[1729249683250,5.47001605,2630.0,2629.7,0.12219969]
[1729249683454,5.47019605,2629.9,2629.7,0.12219969]
[1729249684057,3.80248,2629.9,2629.7,0.12219969]
[1729249684553,5.47019605,2629.9,2629.7,0.12219969]
[1729249687136,5.47028605,2629.8,2629.7,0.12219969]
[1729249687446,6.26478605,2629.8,2629.7,0.12219969]
[1729249687758,5.47015605,2629.9,2629.7,0.12219969]
[1729249688063,5.47015605,2629.9,2629.8,0.12204368]
[1729249688362,3.80264,2629.8,2629.5,0.85368342]
[1729249688535,3.80264,2629.8,2629.5,1.65829952]
[1729249692757,3.80264,2629.8,2629.6,0.79662788]
[1729249693527,3.80225,2630.1,2629.7,2.26871605]
[1729249693742,3.80225,2630.1,2629.8,0.87266947]
[1729249694083,3.80225,2630.1,2629.8,0.79662788]
[1729249694246,3.80225,2630.1,2629.9,0.25925697]
[1729249694956,3.80199,2630.2,2629.9,0.25925697]
[1729249695151,5.46970605,2630.2,2629.9,0.25925697]
[1729249695466,3.80199,2630.2,2629.9,1.05588485]
[1729249696171,3.80199,2630.2,2629.9,0.25925697]
[1729249699087,3.80187,2630.3,2629.9,1.05588485]
[1729249699287,8.36594,2630.5,2630.0,1.37310627]